[Event "Kvibergspelen 2018"]
[Site "Prioritet Serneke Arena, Krutvagen 2, Gothenburg, Sweden"]
[Date "2018.04.20"]
[Round "1.16"]
[White "Kucuksari, Kaan"]
[Black "Hattab, Hashim"]
[Result "1-0"]
[TimeControl "15 minutes + 5 seconds per move from move one (Round 1 - 4) / 90 minutes + 30 seconds per move from move one (Round 5 - 8)"]
[WhiteTitle "FM"]
[WhiteFideId "6380166"]
[BlackFideId "1721798"]
[WhiteElo "2251"]
[BlackElo "1883"]

1. d4 {[%clk 00:15:07]} {[%emt 00:00:02]} Nf6 {[%clk 00:15:05]} {[%emt
00:00:05]} 2. Nf3 {[%clk 00:15:09]} {[%emt 00:00:04]} g6 {[%clk 00:15:06]}
{[%emt 00:00:04]} 3. c4 {[%clk 00:15:12]} {[%emt 00:00:02]} Bg7 {[%clk
00:15:09]} {[%emt 00:00:02]} 4. Nc3 {[%clk 00:15:15]} {[%emt 00:00:03]} O-O
{[%clk 00:15:11]} {[%emt 00:00:03]} 5. e4 {[%clk 00:15:19]} {[%emt 00:00:01]}
d6 {[%clk 00:15:15]} {[%emt 00:00:01]} 6. h3 {[%clk 00:15:23]} {[%emt
00:00:01]} e5 {[%clk 00:14:46]} {[%emt 00:00:33]} 7. d5 {[%clk 00:15:27]}
{[%emt 00:00:02]} a5 {[%clk 00:14:49]} {[%emt 00:00:02]} 8. Bg5 {[%clk
00:15:28]} {[%emt 00:00:03]} Bd7 {[%clk 00:14:37]} {[%emt 00:00:17]} 9. Be2
{[%clk 00:15:28]} {[%emt 00:00:05]} Na6 {[%clk 00:14:37]} {[%emt 00:00:04]} 10.
Nd2 {[%clk 00:15:26]} {[%emt 00:00:08]} Qc8 {[%clk 00:14:12]} {[%emt 00:00:30]}
11. a3 {[%clk 00:15:03]} {[%emt 00:00:29]} h6 {[%clk 00:14:14]} {[%emt
00:00:02]} 12. Be3 {[%clk 00:15:04]} {[%emt 00:00:04]} Nh7 {[%clk 00:13:46]}
{[%emt 00:00:34]} 13. g4 {[%clk 00:13:08]} {[%emt 00:02:02]} b6 {[%clk
00:13:29]} {[%emt 00:00:21]} 14. Qc2 {[%clk 00:11:09]} {[%emt 00:02:04]} Nc5
{[%clk 00:13:09]} {[%emt 00:00:25]} 15. O-O-O {[%clk 00:10:47]} {[%emt
00:00:26]} a4 {[%clk 00:12:59]} {[%emt 00:00:15]} 16. Rdg1 {[%clk 00:10:42]}
{[%emt 00:00:10]} Re8 {[%clk 00:12:05]} {[%emt 00:00:59]} 17. h4 {[%clk
00:10:35]} {[%emt 00:00:12]} Re7 {[%clk 00:11:28]} {[%emt 00:00:43]} 18. Kb1
{[%clk 00:10:20]} {[%emt 00:00:21]} Qe8 {[%clk 00:11:17]} {[%emt 00:00:15]} 19.
Nf1 {[%clk 00:09:25]} {[%emt 00:00:59]} Nb3 {[%clk 00:11:18]} {[%emt 00:00:05]}
20. Ng3 {[%clk 00:09:06]} {[%emt 00:00:24]} Nd4 {[%clk 00:11:20]} {[%emt
00:00:03]} 21. Qd2 {[%clk 00:09:08]} {[%emt 00:00:02]} Qf8 {[%clk 00:11:16]}
{[%emt 00:00:10]} 22. Rg2 {[%clk 00:06:51]} {[%emt 00:02:22]} Ree8 {[%clk
00:11:19]} {[%emt 00:00:02]} 23. Rhg1 {[%clk 00:06:50]} {[%emt 00:00:06]} Kh8
{[%clk 00:11:23]} {[%emt 00:00:02]} 24. Bd1 {[%clk 00:05:34]} {[%emt 00:01:20]}
Reb8 {[%clk 00:11:25]} {[%emt 00:00:03]} 25. g5 {[%clk 00:05:35]} {[%emt
00:00:04]} h5 {[%clk 00:11:28]} {[%emt 00:00:02]} 26. f4 {[%clk 00:04:49]}
{[%emt 00:00:52]} Nb3 {[%clk 00:10:55]} {[%emt 00:00:38]} 27. Bxb3 {[%clk
00:04:48]} {[%emt 00:00:06]} exf4 {[%clk 00:10:51]} {[%emt 00:00:09]} 28. Bxf4
{[%clk 00:04:23]} {[%emt 00:00:30]} axb3 {[%clk 00:10:54]} {[%emt 00:00:02]} 29.
Be3 {[%clk 00:03:59]} {[%emt 00:00:29]} Ra5 {[%clk 00:10:44]} {[%emt 00:00:15]}
30. Bd4 {[%clk 00:03:19]} {[%emt 00:00:45]} Be5 {[%clk 00:10:43]} {[%emt
00:00:06]} 31. Rf1 {[%clk 00:03:19]} {[%emt 00:00:05]} Qg7 {[%clk 00:10:38]}
{[%emt 00:00:10]} 32. Bxe5 {[%clk 00:03:17]} {[%emt 00:00:07]} dxe5 {[%clk
00:10:23]} {[%emt 00:00:20]} 33. Rgf2 {[%clk 00:03:21]} Be8 {[%clk 00:10:16]}
{[%emt 00:00:11]} 34. Qd1 {[%clk 00:03:23]} {[%emt 00:00:05]} Qf8 {[%clk
00:09:53]} {[%emt 00:00:29]} 35. Nxh5 {[%clk 00:03:09]} {[%emt 00:00:19]} gxh5
{[%clk 00:09:51]} {[%emt 00:00:07]} 36. g6 {[%clk 00:03:12]} {[%emt 00:00:02]}
Rxa3 {[%clk 00:09:31]} {[%emt 00:00:25]} 37. bxa3 {[%clk 00:02:31]} {[%emt
00:00:47]} Qxa3 {[%clk 00:09:33]} {[%emt 00:00:03]} 38. Qxh5 {[%clk 00:02:16]}
{[%emt 00:00:20]} 1-0

[Event "Kvibergspelen 2018"]
[Site "Prioritet Serneke Arena, Krutvagen 2, Gothenburg, Sweden"]
[Date "2018.04.20"]
[Round "1.17"]
[White "Naslund, Mikael"]
[Black "Jonsson, Jacob"]
[Result "1-0"]
[TimeControl "15 minutes + 5 seconds per move from move one (Round 1 - 4) / 90 minutes + 30 seconds per move from move one (Round 5 - 8)"]
[WhiteTitle "FM"]
[WhiteFideId "1708260"]
[BlackFideId "1726315"]
[WhiteElo "2224"]
[BlackElo "1871"]

1. d4 {[%clk 00:15:09]} Nf6 {[%clk 00:15:09]} {[%emt 00:00:01]} 2. c4 {[%clk
00:15:13]} e6 {[%clk 00:15:13]} {[%emt 00:00:02]} 3. Nf3 {[%clk 00:15:17]}
{[%emt 00:00:01]} d5 {[%clk 00:15:17]} {[%emt 00:00:01]} 4. Nc3 {[%clk
00:15:20]} {[%emt 00:00:01]} Be7 {[%clk 00:15:21]} 5. Bg5 {[%clk 00:15:23]}
{[%emt 00:00:02]} O-O {[%clk 00:15:25]} {[%emt 00:00:02]} 6. e3 {[%clk
00:15:26]} {[%emt 00:00:02]} b6 {[%clk 00:15:25]} {[%emt 00:00:05]} 7. cxd5
{[%clk 00:14:59]} {[%emt 00:00:31]} Nxd5 {[%clk 00:15:22]} {[%emt 00:00:09]} 8.
Bxe7 {[%clk 00:15:01]} {[%emt 00:00:04]} Nxe7 {[%clk 00:15:25]} {[%emt
00:00:01]} 9. Bc4 {[%clk 00:14:46]} {[%emt 00:00:20]} Bb7 {[%clk 00:14:56]}
{[%emt 00:00:34]} 10. O-O {[%clk 00:14:40]} {[%emt 00:00:10]} Nd7 {[%clk
00:14:38]} {[%emt 00:00:23]} 11. Qe2 {[%clk 00:14:26]} {[%emt 00:00:18]} c5
{[%clk 00:14:14]} {[%emt 00:00:30]} 12. Rfd1 {[%clk 00:14:23]} {[%emt
00:00:09]} cxd4 {[%clk 00:11:09]} {[%emt 00:03:10]} 13. Nxd4 {[%clk 00:13:56]}
{[%emt 00:00:31]} Nd5 {[%clk 00:06:57]} {[%emt 00:04:17]} 14. Nxd5 {[%clk
00:12:12]} {[%emt 00:01:50]} Bxd5 {[%clk 00:07:01]} {[%emt 00:00:02]} 15. Bxd5
{[%clk 00:12:01]} {[%emt 00:00:16]} exd5 {[%clk 00:07:03]} {[%emt 00:00:02]} 16.
Rac1 {[%clk 00:11:43]} {[%emt 00:00:23]} Ne5 {[%clk 00:05:37]} {[%emt
00:01:31]} 17. h3 {[%clk 00:10:41]} {[%emt 00:01:06]} Qd7 {[%clk 00:04:44]}
{[%emt 00:00:59]} 18. Rc2 {[%clk 00:09:27]} {[%emt 00:01:19]} Rac8 {[%clk
00:02:56]} {[%emt 00:01:53]} 19. Rdc1 {[%clk 00:09:29]} {[%emt 00:00:02]} Rc4
{[%clk 00:02:03]} {[%emt 00:00:59]} 20. b3 {[%clk 00:09:26]} {[%emt 00:00:08]}
Rxc2 {[%clk 00:02:03]} {[%emt 00:00:05]} 21. Qxc2 {[%clk 00:08:59]} {[%emt
00:00:32]} Rd8 {[%clk 00:01:57]} {[%emt 00:00:11]} 22. Qc7 {[%clk 00:08:11]}
{[%emt 00:00:53]} g6 {[%clk 00:01:58]} {[%emt 00:00:05]} 23. Qxe5 {[%clk
00:08:14]} {[%emt 00:00:02]} Rc8 {[%clk 00:00:51]} {[%emt 00:01:12]} 24. Rxc8+
{[%clk 00:07:54]} {[%emt 00:00:25]} Qxc8 {[%clk 00:00:55]} {[%emt 00:00:01]} 25.
Qxd5 {[%clk 00:07:10]} {[%emt 00:00:49]} Qc1+ {[%clk 00:00:56]} {[%emt
00:00:04]} 26. Kh2 {[%clk 00:07:10]} {[%emt 00:00:04]} Qb2 {[%clk 00:00:55]}
{[%emt 00:00:06]} 27. Qa8+ {[%clk 00:05:51]} {[%emt 00:01:24]} Kg7 {[%clk
00:00:57]} {[%emt 00:00:03]} 28. Qxa7 {[%clk 00:05:33]} {[%emt 00:00:24]} Qxf2
{[%clk 00:00:52]} {[%emt 00:00:09]} 29. Qxb6 {[%clk 00:05:14]} {[%emt
00:00:25]} Qxa2 {[%clk 00:00:33]} {[%emt 00:00:24]} 30. Qd6 {[%clk 00:04:52]}
{[%emt 00:00:26]} Qa5 {[%clk 00:00:21]} {[%emt 00:00:17]} 31. Nf3 {[%clk
00:03:45]} {[%emt 00:01:12]} Kg8 {[%clk 00:00:14]} {[%emt 00:00:12]} 32. Qb8+
{[%clk 00:03:35]} {[%emt 00:00:16]} Kg7 {[%clk 00:00:16]} {[%emt 00:00:04]} 33.
Qe5+ {[%clk 00:03:38]} {[%emt 00:00:01]} Qxe5 {[%clk 00:00:20]} {[%emt
00:00:01]} 34. Nxe5 {[%clk 00:03:42]} Kf6 {[%clk 00:00:24]} {[%emt 00:00:01]}
35. Nf3 {[%clk 00:03:38]} {[%emt 00:00:09]} Ke7 {[%clk 00:00:22]} {[%emt
00:00:07]} 36. Kg3 {[%clk 00:03:40]} {[%emt 00:00:03]} f6 {[%clk 00:00:25]}
{[%emt 00:00:02]} 37. Kf4 {[%clk 00:03:44]} {[%emt 00:00:01]} Kd6 {[%clk
00:00:27]} {[%emt 00:00:03]} 38. Ke4 {[%clk 00:03:46]} {[%emt 00:00:02]} Kc5
{[%clk 00:00:29]} {[%emt 00:00:03]} 39. Nd4 {[%clk 00:03:46]} {[%emt 00:00:05]}
Kd6 {[%clk 00:00:32]} {[%emt 00:00:03]} 40. b4 {[%clk 00:03:48]} {[%emt
00:00:03]} h6 {[%clk 00:00:31]} {[%emt 00:00:06]} 41. b5 {[%clk 00:03:52]}
{[%emt 00:00:01]} Kc5 {[%clk 00:00:34]} {[%emt 00:00:01]} 42. g4 {[%clk
00:03:47]} {[%emt 00:00:10]} Kd6 {[%clk 00:00:32]} {[%emt 00:00:07]} 43. b6
{[%clk 00:03:36]} {[%emt 00:00:16]} h5 {[%clk 00:00:16]} {[%emt 00:00:22]} 44.
gxh5 {[%clk 00:03:33]} {[%emt 00:00:09]} gxh5 {[%clk 00:00:14]} {[%emt
00:00:06]} 45. Kf5 {[%clk 00:03:36]} {[%emt 00:00:02]} 1-0

[Event "Kvibergspelen 2018"]
[Site "Prioritet Serneke Arena, Krutvagen 2, Gothenburg, Sweden"]
[Date "2018.04.20"]
[Round "1.18"]
[White "Andersson, Stig"]
[Black "Nilsson, Anders"]
[Result "0-1"]
[TimeControl "15 minutes + 5 seconds per move from move one (Round 1 - 4) / 90 minutes + 30 seconds per move from move one (Round 5 - 8)"]
[BlackTitle "CM"]
[WhiteFideId "1731971"]
[BlackFideId "1705423"]
[WhiteElo "1865"]
[BlackElo "2217"]

1. d4 {[%clk 00:15:06]} {[%emt 00:00:02]} e6 {[%clk 00:15:04]} {[%emt
00:00:07]} 2. e3 {[%clk 00:14:43]} {[%emt 00:00:28]} Nf6 {[%clk 00:14:59]}
{[%emt 00:00:10]} 3. Nf3 {[%clk 00:14:46]} {[%emt 00:00:02]} b6 {[%clk
00:14:50]} {[%emt 00:00:15]} 4. Bd3 {[%clk 00:14:45]} {[%emt 00:00:05]} Bb7
{[%clk 00:14:31]} {[%emt 00:00:25]} 5. Nbd2 {[%clk 00:14:47]} {[%emt 00:00:03]}
Be7 {[%clk 00:14:26]} {[%emt 00:00:10]} 6. O-O {[%clk 00:14:39]} {[%emt
00:00:13]} c5 {[%clk 00:14:21]} {[%emt 00:00:10]} 7. c3 {[%clk 00:14:43]}
{[%emt 00:00:02]} O-O {[%clk 00:14:13]} {[%emt 00:00:12]} 8. Qc2 {[%clk
00:14:30]} {[%emt 00:00:18]} Ba6 {[%clk 00:14:06]} {[%emt 00:00:12]} 9. c4
{[%clk 00:14:24]} {[%emt 00:00:11]} Nc6 {[%clk 00:14:05]} {[%emt 00:00:06]} 10.
a3 {[%clk 00:14:18]} {[%emt 00:00:12]} Rc8 {[%clk 00:13:06]} {[%emt 00:01:04]}
11. d5 {[%clk 00:13:54]} {[%emt 00:00:30]} Na5 {[%clk 00:11:49]} {[%emt
00:01:22]} 12. e4 {[%clk 00:13:14]} {[%emt 00:00:44]} exd5 {[%clk 00:10:12]}
{[%emt 00:01:42]} 13. exd5 {[%clk 00:12:56]} {[%emt 00:00:23]} d6 {[%clk
00:10:09]} {[%emt 00:00:08]} 14. b3 {[%clk 00:12:52]} {[%emt 00:00:08]} g6
{[%clk 00:07:40]} {[%emt 00:02:34]} 15. b4 {[%clk 00:12:22]} {[%emt 00:00:36]}
cxb4 {[%clk 00:07:41]} {[%emt 00:00:04]} 16. axb4 {[%clk 00:12:24]} {[%emt
00:00:02]} Nxc4 {[%clk 00:07:07]} {[%emt 00:00:40]} 17. Bxc4 {[%clk 00:11:21]}
{[%emt 00:01:08]} Bxc4 {[%clk 00:07:09]} {[%emt 00:00:03]} 18. Nxc4 {[%clk
00:11:21]} {[%emt 00:00:05]} b5 {[%clk 00:07:13]} {[%emt 00:00:01]} 19. Rxa7
{[%clk 00:11:12]} {[%emt 00:00:13]} Rxc4 {[%clk 00:07:11]} {[%emt 00:00:07]} 20.
Qd3 {[%clk 00:09:40]} {[%emt 00:01:38]} Nd7 {[%clk 00:06:54]} {[%emt 00:00:21]}
21. Nd4 {[%clk 00:08:48]} {[%emt 00:00:57]} Ne5 {[%clk 00:06:54]} {[%emt
00:00:05]} 22. Qd2 {[%clk 00:08:45]} {[%emt 00:00:07]} Qb6 {[%clk 00:06:48]}
{[%emt 00:00:11]} 23. Nxb5 {[%clk 00:08:14]} {[%emt 00:00:36]} Qxb5 {[%clk
00:05:43]} {[%emt 00:01:10]} 24. Rxe7 {[%clk 00:08:16]} {[%emt 00:00:03]} Rxb4
{[%clk 00:05:19]} {[%emt 00:00:29]} 25. Ba3 {[%clk 00:08:13]} {[%emt 00:00:07]}
Rb1 {[%clk 00:05:15]} {[%emt 00:00:09]} 26. Rd1 {[%clk 00:07:34]} {[%emt
00:00:44]} Nc4 {[%clk 00:05:11]} {[%emt 00:00:10]} 27. Rxb1 {[%clk 00:07:24]}
{[%emt 00:00:15]} Qxb1+ {[%clk 00:05:14]} {[%emt 00:00:02]} 28. Re1 {[%clk
00:07:18]} {[%emt 00:00:11]} Nxd2 {[%clk 00:05:16]} {[%emt 00:00:02]} 29. Rxb1
{[%clk 00:07:18]} {[%emt 00:00:05]} Nxb1 {[%clk 00:05:20]} {[%emt 00:00:01]}
0-1

[Event "Kvibergspelen 2018"]
[Site "Prioritet Serneke Arena, Krutvagen 2, Gothenburg, Sweden"]
[Date "2018.04.20"]
[Round "1.19"]
[White "Johansson, Gunnar"]
[Black "Ytterberg, Felix"]
[Result "1-0"]
[TimeControl "15 minutes + 5 seconds per move from move one (Round 1 - 4) / 90 minutes + 30 seconds per move from move one (Round 5 - 8)"]
[WhiteFideId "1703501"]
[BlackFideId "1740687"]
[WhiteElo "2212"]
[BlackElo "1864"]

1. d4 {[%clk 00:15:06]} {[%emt 00:00:03]} Nf6 {[%clk 00:15:09]} {[%emt
00:00:01]} 2. c4 {[%clk 00:15:08]} {[%emt 00:00:04]} e6 {[%clk 00:15:12]}
{[%emt 00:00:02]} 3. Nf3 {[%clk 00:15:08]} {[%emt 00:00:04]} d5 {[%clk
00:15:15]} {[%emt 00:00:02]} 4. Nc3 {[%clk 00:15:10]} {[%emt 00:00:03]} dxc4
{[%clk 00:15:15]} {[%emt 00:00:05]} 5. e4 {[%clk 00:14:40]} {[%emt 00:00:35]}
Bb4 {[%clk 00:15:17]} {[%emt 00:00:02]} 6. Bg5 {[%clk 00:14:39]} {[%emt
00:00:06]} h6 {[%clk 00:15:07]} {[%emt 00:00:16]} 7. Bxf6 {[%clk 00:14:32]}
{[%emt 00:00:13]} Qxf6 {[%clk 00:15:08]} {[%emt 00:00:04]} 8. Bxc4 {[%clk
00:14:30]} {[%emt 00:00:07]} c5 {[%clk 00:15:11]} 9. O-O {[%clk 00:13:27]}
{[%emt 00:01:09]} cxd4 {[%clk 00:15:10]} {[%emt 00:00:06]} 10. Nb5 {[%clk
00:11:54]} {[%emt 00:01:38]} Qd8 {[%clk 00:14:34]} {[%emt 00:00:40]} 11. Qa4
{[%clk 00:10:33]} {[%emt 00:01:27]} Nc6 {[%clk 00:13:10]} {[%emt 00:01:30]} 12.
Nbxd4 {[%clk 00:09:54]} {[%emt 00:00:45]} Qa5 {[%clk 00:12:45]} {[%emt
00:00:26]} 13. Bb5 {[%clk 00:09:19]} {[%emt 00:00:44]} Qxa4 {[%clk 00:12:30]}
{[%emt 00:00:20]} 14. Bxa4 {[%clk 00:09:21]} {[%emt 00:00:02]} Bd7 {[%clk
00:12:14]} {[%emt 00:00:20]} 15. Nxc6 {[%clk 00:09:08]} {[%emt 00:00:19]} Bxc6
{[%clk 00:11:11]} {[%emt 00:01:07]} 16. Bxc6+ {[%clk 00:09:11]} {[%emt
00:00:04]} bxc6 {[%clk 00:11:14]} {[%emt 00:00:01]} 17. Rac1 {[%clk 00:08:43]}
{[%emt 00:00:33]} Rc8 {[%clk 00:09:46]} {[%emt 00:01:33]} 18. Rc4 {[%clk
00:06:28]} {[%emt 00:02:21]} Bd6 {[%clk 00:07:57]} {[%emt 00:01:53]} 19. Rfc1
{[%clk 00:05:07]} {[%emt 00:01:27]} Kd7 {[%clk 00:07:32]} {[%emt 00:00:28]} 20.
Nd4 {[%clk 00:04:48]} {[%emt 00:00:26]} c5 {[%clk 00:07:28]} {[%emt 00:00:08]}
21. Nb3 {[%clk 00:04:36]} {[%emt 00:00:16]} Rb8 {[%clk 00:07:24]} {[%emt
00:00:07]} 22. Nxc5+ {[%clk 00:04:21]} {[%emt 00:00:22]} Bxc5 {[%clk 00:06:05]}
{[%emt 00:01:25]} 23. Rxc5 {[%clk 00:04:25]} {[%emt 00:00:02]} Rb7 {[%clk
00:06:08]} 24. b3 {[%clk 00:04:02]} {[%emt 00:00:28]} Rhb8 {[%clk 00:05:56]}
{[%emt 00:00:16]} 25. Kf1 {[%clk 00:03:52]} {[%emt 00:00:16]} Kd6 {[%clk
00:05:48]} {[%emt 00:00:11]} 26. Ke2 {[%clk 00:03:54]} {[%emt 00:00:05]} f6
{[%clk 00:04:47]} {[%emt 00:01:03]} 27. Ke3 {[%clk 00:03:56]} {[%emt 00:00:05]}
Rb6 {[%clk 00:04:41]} {[%emt 00:00:12]} 28. f4 {[%clk 00:03:34]} {[%emt
00:00:26]} R8b7 {[%clk 00:04:29]} {[%emt 00:00:17]} 29. e5+ {[%clk 00:03:12]}
{[%emt 00:00:28]} fxe5 {[%clk 00:03:53]} {[%emt 00:00:40]} 30. Rxe5 {[%clk
00:03:15]} {[%emt 00:00:02]} Rb5 {[%clk 00:03:57]} {[%emt 00:00:01]} 31. Rd1+
{[%clk 00:02:41]} {[%emt 00:00:39]} Rd5 {[%clk 00:03:50]} {[%emt 00:00:12]} 32.
Rd4 {[%clk 00:02:15]} {[%emt 00:00:30]} g5 {[%clk 00:03:28]} {[%emt 00:00:27]}
33. Rexd5+ {[%clk 00:01:55]} {[%emt 00:00:25]} exd5 {[%clk 00:03:30]} {[%emt
00:00:03]} 34. Ra4 {[%clk 00:01:41]} {[%emt 00:00:20]} gxf4+ {[%clk 00:03:01]}
{[%emt 00:00:34]} 35. Rxf4 {[%clk 00:01:34]} {[%emt 00:00:11]} Ke5 {[%clk
00:02:59]} {[%emt 00:00:07]} 36. Rh4 {[%clk 00:01:36]} {[%emt 00:00:04]} Rb6
{[%clk 00:02:59]} {[%emt 00:00:05]} 37. Rh5+ {[%clk 00:01:37]} {[%emt
00:00:04]} Ke6 {[%clk 00:02:23]} {[%emt 00:00:41]} 38. Rxh6+ {[%clk 00:01:40]}
{[%emt 00:00:02]} Ke5 {[%clk 00:02:28]} 39. Rxb6 {[%clk 00:01:39]} {[%emt
00:00:07]} axb6 {[%clk 00:02:32]} 40. a4 {[%clk 00:01:36]} {[%emt 00:00:07]}
d4+ {[%clk 00:02:34]} {[%emt 00:00:03]} 41. Kd3 {[%clk 00:01:40]} {[%emt
00:00:01]} Kd5 {[%clk 00:02:39]} 42. b4 {[%clk 00:01:43]} {[%emt 00:00:03]} Ke5
{[%clk 00:02:43]} 43. a5 {[%clk 00:01:47]} {[%emt 00:00:02]} bxa5 {[%clk
00:02:47]} 44. bxa5 {[%clk 00:01:51]} Kd5 {[%clk 00:02:52]} 45. a6 {[%clk
00:01:55]} {[%emt 00:00:02]} Kc6 {[%clk 00:02:56]} 46. Kxd4 {[%clk 00:01:58]}
{[%emt 00:00:02]} Kb6 {[%emt 00:00:01]} 47. h4 {[%clk 00:02:01]} {[%emt
00:00:01]} Kxa6 {[%clk 00:03:05]} 48. h5 {[%emt 00:00:02]} Kb6 49. Ke5 {[%clk
00:02:02]} {[%emt 00:00:02]} Kc6 {[%clk 00:03:10]} 50. h6 {[%clk 00:02:05]}
{[%emt 00:00:02]} Kd7 {[%clk 00:03:14]} 51. Kf6 {[%clk 00:02:09]} {[%emt
00:00:01]} Ke8 {[%clk 00:03:18]} 52. h7 {[%clk 00:02:12]} {[%emt 00:00:02]} 1-0

[Event "Kvibergspelen 2018"]
[Site "Prioritet Serneke Arena, Krutvagen 2, Gothenburg, Sweden"]
[Date "2018.04.20"]
[Round "1.20"]
[White "Muntean, Victor"]
[Black "Ronneland, Daniel"]
[Result "0-1"]
[TimeControl "15 minutes + 5 seconds per move from move one (Round 1 - 4) / 90 minutes + 30 seconds per move from move one (Round 5 - 8)"]
[WhiteFideId "1054414"]
[BlackFideId "1702130"]
[WhiteElo "1846"]
[BlackElo "2201"]

1. e4 {[%emt 00:06:14]} e5 {[%emt 00:00:08]} 2. Nf3 {[%emt 00:00:12]} Nc6
{[%emt 00:00:05]} 3. d4 {[%emt 00:00:06]} exd4 {[%emt 00:00:05]} 4. Bc4 {[%emt
00:00:04]} Nf6 {[%emt 00:00:21]} 5. Ng5 {[%emt 00:00:26]} d5 {[%emt 00:01:51]}
6. exd5 {[%emt 00:00:07]} Ne5 {[%emt 00:01:14]} 7. Qxd4 {[%emt 00:00:06]} Nxc4
{[%emt 00:00:33]} 8. Qxc4 {[%emt 00:00:03]} h6 {[%emt 00:01:41]} 9. Ne4 {[%emt
00:01:30]} Nxd5 {[%emt 00:00:11]} 10. O-O {[%emt 00:00:21]} c6 {[%emt
00:00:40]} 11. Re1 {[%emt 00:00:24]} Be6 {[%emt 00:00:16]} 12. Nbc3 {[%emt
00:03:07]} Qb6 {[%emt 00:02:27]} 13. Na4 {[%emt 00:02:31]} Qb4 {[%emt
00:00:03]} 14. Qxb4 {[%emt 00:00:56]} Nxb4 {[%emt 00:00:49]} 15. Re2 {[%emt
00:00:38]} O-O-O {[%emt 00:00:27]} 16. Be3 {[%emt 00:02:38]} Bc4 {[%emt
00:00:02]} 17. Rd2 {[%emt 00:00:02]} Rxd2 {[%emt 00:00:32]} 18. Nxd2 {[%emt
00:00:02]} Nxc2 {[%emt 00:00:53]} 19. Bxa7 {[%emt 00:02:44]} Nxa1 {[%emt
00:00:14]} 20. Nb6+ {[%emt 00:00:09]} Kc7 {[%emt 00:00:13]} 21. Nbxc4 {[%emt
00:00:03]} Bb4 {[%emt 00:00:18]} 22. Bb6+ {[%emt 00:00:30]} Kc8 {[%emt
00:00:11]} 23. Ne4 {[%emt 00:00:03]} Nc2 {[%emt 00:00:16]} 24. Ncd6+ {[%emt
00:00:12]} Bxd6 {[%emt 00:00:03]} 25. Nxd6+ {[%emt 00:00:02]} Kb8 {[%emt
00:00:50]} 26. Nxf7 {[%emt 00:00:20]} Re8 {[%emt 00:00:02]} 27. Ba5 {[%emt
00:00:17]} 0-1

[Event "Kvibergspelen 2018"]
[Site "Prioritet Serneke Arena, Krutvagen 2, Gothenburg, Sweden"]
[Date "2018.04.20"]
[Round "2.1"]
[White "Gutzmann, Tobias"]
[Black "Hillarp Persson, Tiger"]
[Result "0-1"]
[TimeControl "15 minutes + 5 seconds per move from move one (Round 1 - 4) / 90 minutes + 30 seconds per move from move one (Round 5 - 8)"]
[BlackTitle "GM"]
[WhiteFideId "4686250"]
[BlackFideId "1700812"]
[WhiteElo "2063"]
[BlackElo "2540"]

1. e4 {[%clk 00:15:08]} {[%emt 00:00:02]} g6 {[%clk 00:15:08]} {[%emt
00:00:02]} 2. d4 {[%clk 00:15:11]} {[%emt 00:00:02]} Bg7 {[%clk 00:15:11]}
{[%emt 00:00:01]} 3. c4 {[%clk 00:15:15]} {[%emt 00:00:02]} d6 {[%clk
00:15:15]} {[%emt 00:00:01]} 4. Nc3 {[%clk 00:15:16]} {[%emt 00:00:03]} Nf6
{[%clk 00:15:13]} {[%emt 00:00:07]} 5. f3 {[%clk 00:15:17]} {[%emt 00:00:04]}
O-O {[%clk 00:15:14]} {[%emt 00:00:04]} 6. Be3 {[%clk 00:15:20]} {[%emt
00:00:01]} a6 {[%clk 00:15:17]} {[%emt 00:00:02]} 7. Nge2 {[%clk 00:15:13]}
{[%emt 00:00:12]} Nbd7 {[%clk 00:15:20]} {[%emt 00:00:02]} 8. Qd2 {[%clk
00:15:12]} {[%emt 00:00:07]} b5 {[%clk 00:15:23]} {[%emt 00:00:01]} 9. cxb5
{[%clk 00:15:05]} {[%emt 00:00:12]} axb5 {[%clk 00:15:27]} {[%emt 00:00:02]} 10.
Nxb5 {[%clk 00:14:51]} {[%emt 00:00:19]} c6 {[%clk 00:15:30]} {[%emt 00:00:01]}
11. Na3 {[%clk 00:14:44]} {[%emt 00:00:12]} e5 {[%clk 00:14:29]} {[%emt
00:01:06]} 12. Bh6 {[%clk 00:14:28]} {[%emt 00:00:22]} Nxe4 {[%clk 00:14:19]}
{[%emt 00:00:15]} 13. fxe4 {[%clk 00:14:25]} {[%emt 00:00:08]} Qh4+ {[%clk
00:14:22]} {[%emt 00:00:02]} 14. g3 {[%clk 00:14:25]} {[%emt 00:00:06]} Qxh6
{[%clk 00:14:24]} {[%emt 00:00:02]} 15. Qxh6 {[%clk 00:14:20]} {[%emt
00:00:10]} Bxh6 {[%clk 00:14:27]} {[%emt 00:00:02]} 16. Nc4 {[%clk 00:14:19]}
{[%emt 00:00:06]} exd4 {[%clk 00:12:55]} {[%emt 00:01:37]} 17. Nxd4 {[%clk
00:13:56]} {[%emt 00:00:28]} d5 {[%clk 00:12:39]} {[%emt 00:00:21]} 18. Nd6
{[%clk 00:13:54]} {[%emt 00:00:07]} Ne5 {[%clk 00:12:11]} {[%emt 00:00:32]} 19.
exd5 {[%clk 00:13:00]} {[%emt 00:01:00]} cxd5 {[%clk 00:12:11]} {[%emt
00:00:06]} 20. Nxc8 {[%clk 00:12:50]} {[%emt 00:00:15]} Rfxc8 {[%clk 00:12:13]}
{[%emt 00:00:03]} 21. Be2 {[%clk 00:12:49]} {[%emt 00:00:05]} Ra4 {[%clk
00:10:49]} {[%emt 00:01:28]} 22. Nf3 {[%clk 00:12:53]} {[%emt 00:00:02]} Re4
{[%clk 00:05:52]} {[%emt 00:05:02]} 23. Nxe5 {[%clk 00:12:55]} {[%emt
00:00:03]} Rc2 {[%clk 00:05:55]} {[%emt 00:00:02]} 24. Ng4 {[%clk 00:12:16]}
{[%emt 00:00:44]} Rexe2+ {[%clk 00:05:57]} {[%emt 00:00:04]} 25. Kf1 {[%clk
00:12:14]} {[%emt 00:00:06]} Bg7 {[%clk 00:05:52]} {[%emt 00:00:10]} 26. Re1
{[%emt 00:00:14]} 0-1